Cogmind - Beta 16.1 @@@ ROGUE MODE // 2026.02.19 @ 02:56:18 Player: Ceorik Result: Destroyed by ED-XCS(R) with Subdweller Laser Performance ------------- Evolutions (0) 0 Regions Visited (3) 600 Robots Destroyed (21) 105 Value Destroyed (360) 360 Prototype IDs (0) 0 Alien Tech Used (0) 0 Bonus (-57) -57 TOTAL SCORE: 1008 Bonus ------- Friendly Fire -57 Cogmind --------- Core Integrity 0/250 Matter 277/300 Energy 81/100 System Corruption 0% Temperature Cool (6) Movement Core (200) Ox3 Location -10/Subcaves Parts ------- > --- POWER (1) -------- (None) > --- PROPULSION (2) --- (None) > --- UTILITY (2) ------ Heat Sink Small Storage Unit > --- WEAPON (2) ------- Subdweller Laser Battle Rifle > --- INVENTORY (8) ---- Light Nuclear Core Medium Matter Pod (100) Peak State ------------ > --- POWER ------------ Ion Engine > --- PROPULSION ------- Aluminum Leg Aluminum Leg > --- UTILITY ---------- Heat Sink Small Storage Unit > --- WEAPON ----------- Beam Cannon Assault Rifle > --- INVENTORY -------- Ion Engine Light Ion Engine Light Nuclear Core Aluminum Leg Medium Matter Pod Assault Rifle Grenade Launcher Mining Laser [Rating: 8] Favorites ----------- Power Ion Engine Engine Ion Engine Propulsion Aluminum Leg Leg Aluminum Leg Utility Small Storage Unit Device Heat Sink Storage Small Storage Unit Weapon Assault Rifle Energy Gun Subdweller Laser Energy Cannon Beam Cannon Ballistic Gun Assault Rifle Launcher Grenade Launcher Special Weapon Mining Laser Build | -11 -10 -10 -10 ------- Run | Yrd Mat Min Sub Slots Evolved . | . . . . Power . | . . . . Propulsion . | . . . . Utility . | . . . . Weapon . | . . . . Parts Attached 17 | 7 . 3 7 Power 3 | 1 . 1 1 Engine 3 | 1 . 1 1 Core . | . . . . Reactor . | . . . . Propulsion 3 | 2 . . 1 Treads . | . . . . Leg 3 | 2 . . 1 Wheel . | . . . . Hover . | . . . . Flight . | . . . . Utility 3 | 2 . 1 . Device 2 | 1 . 1 . Storage 1 | 1 . . . Processor . | . . . . Hackware . | . . . . Protection . | . . . . Artifact . | . . . . Weapon 8 | 2 . 1 5 Energy Gun 1 | . . . 1 Energy Cannon 1 | . . 1 . Ballistic Gun 3 | 2 . . 1 Ballistic Cannon . | . . . . Launcher 2 | . . . 2 Special Weapon 1 | . . . 1 Impact Weapon . | . . . . Slashing Weapon . | . . . . Piercing Weapon . | . . . . Special Melee Weapon . | . . . . Unidentified Prototypes . | . . . . Parts Lost 10 | . . . 10 Power 1 | . . . 1 Propulsion 3 | . . . 3 Utility . | . . . . Weapon 6 | . . . 6 Highest Loss Streak 3 | . . . 3 To Critical Strikes . | . . . . Average Backups 6 | 1 4 7 5 Power 1 | 1 2 2 1 Propulsion . | . . 1 . Utility . | . . 1 1 Weapon 2 | . 2 3 2 Tool/Special . | . . . . Unused Backups 2 | . . . 2 Power 1 | . . . 1 Propulsion . | . . . . Utility 1 | . . . 1 Weapon . | . . . . Tool/Special . | . . . . Average Slot Usage (%) 89 | . 100 100 77 Engine 13 | . 14 14 13 Leg 23 | . 28 28 17 Device 14 | . 14 14 14 Storage 14 | . 14 14 14 Energy Cannon 7 | . . 13 3 Ballistic Gun 13 | . 28 14 8 Launcher 2 | . . . 4 Peak Build Rating 8 | 7 7 8 8 Average Rating 6 | 4 7 7 5 On Entrance 5 | . 7 7 8 Avg Prop Armor Cover (%) . | . . . . Naked Turns . | . . . . Heaviest Build 16 | 15 15 16 16 Greatest Support 20 | 20 20 20 20 Greatest Overweight (x) 3 | . . . 3 Average Overweight (x) . | . . . . Largest Inventory Capacity 8 | 8 8 8 8 Average Capacity 7 | 7 8 8 8 Most Carried 8 | 3 8 8 8 Average Carried 6 | 1 4 7 5 Final Capacity 8 | 8 8 8 8 Final Carried 8 | 3 8 8 2 Class Distribution -------------------- 100% | Mutant Dominant Class ---------------- Mutant | -10/Materials Mutant | -10/Mines Mutant | -10/Subcaves Resources | -11 -10 -10 -10 ----------- Run | Yrd Mat Min Sub Matter Collected 762 | 277 165 130 190 Remotely . | . . . . Salvage Created 521 | 69 89 223 140 Parts 42 | 7 7 16 12 Haulers Intercepted . | . . . . Recyclers Shooed . | . . . . Parts Field Recycled . | . . . . Retrieved Matter . | . . . . Parts Self-Destructed 1 | . . . 1 Prevented . | . . . . Parts Restored . | . . . . Kills | -11 -10 -10 -10 ------- Run | Yrd Mat Min Sub Combat Hostiles Destroyed 18 | . 4 7 7 Guns 7 | . 4 1 2 Cannons 7 | . . 6 1 AOE 4 | . . . 4 Classes Destroyed 6 | 2 2 . 2 Tunneler 1 | 1 . . . Recycler 2 | 1 . 1 . Swarmer 13 | . 3 6 4 Grunt 2 | . 1 1 . Subdweller 3 | . . . 3 Scientist 1 | . . . 1 Best Kill Streak 4 | 2 3 3 4 Combat Bots Only 4 | . 3 3 4 Max Kills in Single Turn 3 | 1 1 1 3 Gunslinging . | . . . . Exploded 2 | . . . 2 Melee . | . . . . Uniques/NPCs Destroyed . | . . . . Combat | -11 -10 -10 -10 -------- Run | Yrd Mat Min Sub Hostile Shots Fired 183 | . 29 35 119 Missed 76 | . 13 13 50 Hits 107 | . 16 22 69 Projectile 107 | . 16 22 69 Critical Strikes 2 | . . . 2 Damage Taken 1289 | . 147 219 923 Core 261 | . 25 65 171 Absorbed by Shields . | . . . . Core Remaining (%) 100 | 100 . . . Volleys Fired 62 | 4 13 24 21 Largest 2 | 2 2 2 2 Hottest 85 | 40 40 80 85 Shots Fired 120 | 8 26 48 38 Gun 80 | 8 26 24 22 Cannon 32 | . . 24 8 Launcher 8 | . . . 8 Special . | . . . . Kinetic 79 | 8 26 24 21 Thermal 33 | . . 24 9 Explosive 8 | . . . 8 Electromagnetic . | . . . . Robot Hit Streak 9 | 3 5 9 8 Robot Miss Streak 3 | 3 2 3 3 Penetration Max . | . . . . Secondary Targets . | . . . . Shots Hit Robots 66 | 4 16 24 22 Core Hits 35 | 3 6 10 16 Critical Kills . | . . . . Critical Parts Destroyed . | . . . . Critical Strikes . | . . . . Melee Attacks . | . . . . Impact . | . . . . Slashing . | . . . . Piercing . | . . . . Sneak Attacks . | . . . . Combat Hostiles . | . . . . Follow-up Attacks . | . . . . Damage Inflicted 1406 | 52 204 372 778 Guns 537 | 52 204 145 136 Cannons 296 | . . 209 87 Explosions 555 | . . . 555 Melee . | . . . . Ramming 18 | . . 18 . Kinetic 514 | 52 204 145 113 Thermal 319 | . . 209 110 Explosive 555 | . . . 555 Electromagnetic . | . . . . Impact . | . . . . Slashing . | . . . . Piercing . | . . . . Highest Corruption . | . . . . Average Corruption . | . . . . Corruption Purged . | . . . . Corruption Blocked . | . . . . Overload Shots . | . . . . Overflow Damage 9 | . . . 9 Projectiles . | . . . . Explosions 9 | . . . 9 Melee . | . . . . Knockbacks . | . . . . Impact . | . . . . Kinetic . | . . . . Secondary . | . . . . Self-Inflicted Damage 54 | . . . 54 Shots 2 | . . . 2 Rammed . | . . . . Targets Rammed 4 | . . 4 . Kicked 4 | . . 4 . Crushed . | . . . . Highest Temperature 7 | . . 7 . Average Temperature 4 | . . 4 . Received Heat Transfer 321 | . 36 39 246 Siege Activations . | . . . . Martial Activations . | . . . . Shielding Activations . | . . . . Robots Disrupted . | . . . . Combat Hostiles . | . . . . Robots Corrupted . | . . . . Combat Hostiles . | . . . . Parts Fried . | . . . . Impact Corruptions . | . . . . Robots Melted . | . . . . Combat Hostiles . | . . . . Parts Melted 1 | . . 1 . Heat Transferred 654 | . . 444 210 Parts Sabotaged . | . . . . Parts Stolen . | . . . . Parts Stripped . | . . . . Power Chain Reactions . | . . . . Alert | -11 -10 -10 -10 ------- Run | Yrd Mat Min Sub Maximum Alert Level . | . . . . Low Security (%) 100 | 100 100 100 . Level 1 . | . . . . Level 2 . | . . . . Level 3 . | . . . . Level 4 . | . . . . Level 5 . | . . . . High Security . | . . . . Max Security . | . . . . Peak Influence 100 | 5 70 100 . Initial 3 | . . 3 . Average 21 | 1 18 24 . Influence Increases 580 | 10 90 235 245 Destroy 0b10 Robot/C 300 | . 80 140 80 Destroy 0b10 Robot/NC 15 | 10 . 5 . Destroy Leader 40 | . 10 30 . Disable Machine 15 | . . 15 . Lose Combat Pursuer 210 | . . 45 165 Influence Decreases 567 | 10 80 245 232 Entered New Map 7 | . . 7 . Time Decay 490 | 10 80 238 162 Lost Part 70 | . . . 70 Squads Dispatched 1 | . 1 . . Investigation . | . . . . Extermination . | . . . . Reinforcement 1 | . 1 . . Assault . | . . . . Garrison . | . . . . Intercept . | . . . . Searches Triggered . | . . . . Construction Impeded . | . . . . Haulers Reinforced . | . . . . Active Scanning Responses . | . . . . Cargo Convoy Interrupts . | . . . . Stealth | -11 -10 -10 -10 --------- Run | Yrd Mat Min Sub Distress Signals 1 | . 1 . . Communications Jammed . | . . . . Distress Signals . | . . . . Times Spotted 33 | . 6 10 17 Peak Tracking Total 6 | . 3 3 6 Tactical Retreats 7 | . . 2 5 Traps | -11 -10 -10 -10 ------- Run | Yrd Mat Min Sub Traps Triggered . | . . . . Indirectly . | . . . . Trap Hack Attempts . | . . . . Triggered . | . . . . Disarmed . | . . . . Reprogrammed . | . . . . Reused . | . . . . Traps Extracted . | . . . . Installed . | . . . . Triggered . | . . . . Machines | -11 -10 -10 -10 ---------- Run | Yrd Mat Min Sub Machines Disabled 5 | . . 1 4 Max in Single Turn 2 | . . 1 2 Machines Repaired . | . . . . Machines Dismantled . | . . . . Machines Sabotaged . | . . . . Overloaded Fab Kills . | . . . . Hacking | -11 -10 -10 -10 --------- Run | Yrd Mat Min Sub Machines Accessed . | . . . . Terminals . | . . . . Fabricators . | . . . . Repair Stations . | . . . . Recycling Units . | . . . . Scanalyzers . | . . . . Garrison Access . | . . . . Total Hacks . | . . . . Successful . | . . . . Failed . | . . . . Catastrophic . | . . . . Database Lockouts . | . . . . Manual . | . . . . Terminals . | . . . . Fabricators . | . . . . Repair Stations . | . . . . Recycling Units . | . . . . Scanalyzers . | . . . . Garrison Access . | . . . . Terminal Hacks . | . . . . Fabricator Hacks . | . . . . Repair Station Hacks . | . . . . Recycling Unit Hacks . | . . . . Scanalyzer . | . . . . Garrison Access Hacks . | . . . . Unauthorized Hacks . | . . . . Terminals . | . . . . Fabricators . | . . . . Repair Stations . | . . . . Recycling Units . | . . . . Scanalyzers . | . . . . Garrison Access . | . . . . Data Cores Recovered . | . . . . Used . | . . . . Hacking Detections . | . . . . Full Trace Events . | . . . . Feedback Events . | . . . . Feedback Blocked . | . . . . Robot Schematics Acquired . | . . . . Robots Built . | . . . . Authchips . | . . . . Time . | . . . . Total Robot Build Rating . | . . . . Part Schematics Acquired . | . . . . Parts Built . | . . . . Authchips . | . . . . Time . | . . . . Total Part Build Rating . | . . . . Part Studies Acquired . | . . . . Parts Repaired . | . . . . Time . | . . . . Parts Recycled . | . . . . Recycled Matter . | . . . . Retrieved Matter . | . . . . Retrieved Components . | . . . . Parts Scanalyzed . | . . . . Part Schematics Acquired . | . . . . Parts Damaged . | . . . . Bothacking | -11 -10 -10 -10 ------------ Run | Yrd Mat Min Sub Used RIF Installer . | . . . . Robots Hacked . | . . . . Non-combat . | . . . . Combat . | . . . . Robot Hacks Applied . | . . . . Relay Couplers Released . | . . . . Fabnet Peak Effective % . | . . . . Robots Rewired . | . . . . Allies Hacked . | . . . . Hacks Repelled . | . . . . Allies | -11 -10 -10 -10 -------- Run | Yrd Mat Min Sub Total Allies . | . . . . Largest Group . | . . . . Highest-Rated Group . | . . . . Highest-Rated Ally . | . . . . Total Orders . | . . . . Ally Attacks . | . . . . Total Damage . | . . . . Kills . | . . . . Allies Corrupted . | . . . . Allies Melted . | . . . . Intel | -11 -10 -10 -10 ------- Run | Yrd Mat Min Sub Active Infowar (turns) 307 | 19 288 . . Seismic 307 | 19 288 . . Robot Analysis Total . | . . . . Derelict Logs Recovered 3 | . . 2 1 Drone Launches . | . . . . Drone Recoveries . | . . . . Exploration | -11 -10 -10 -10 ------------- Run | Yrd Mat Min Sub Turns Passed 2400 | 91 288 1003 1018 Spaces Moved 1648 | 56 190 705 697 Core 237 | 6 . . 231 Treads . | . . . . Legs 1411 | 50 190 705 466 Wheels . | . . . . Hover . | . . . . Flight . | . . . . Fastest Speed 50 | 50 120 120 100 Average Speed 124 | 112 120 120 131 Slowest Speed 200 | 120 120 120 200 Overloaded Moves . | . . . . Propulsion Burnouts . | . . . . Robots Hopped . | . . . . Potential Cave-ins . | . . . . Cave-ins Triggered . | . . . . Exploration Rate (%) 45 | 3 29 98 51 Regions Visited 3 Branch Regions 2 Pre-discovered Areas 1 | . . . 1 Known Exits Taken . | . . . . Unknown Exits Taken 3 | 1 1 1 . Scrap Searched 2 | . . 1 1 Spaces Dug 10 | . . . 10 Terrain Destroyed 46 | . . . 46 Melee . | . . . . Projectile . | . . . . AOE 46 | . . . 46 Terrain Rammed . | . . . . Walls Destroyed . | . . . . Machines Disabled . | . . . . Actions | -11 -10 -10 -10 --------- Run | Yrd Mat Min Sub Total 1872 | 76 224 812 760 Wait 117 | . 17 73 27 Move 1645 | 55 189 704 697 Hop . | . . . . Pick Up 19 | 10 5 2 2 Fast Attach . | . . . . Attach 14 | 7 . . 7 Detach . | . . . . Swap 8 | . . 3 5 Drop 3 | . . 2 1 Fire 62 | 4 13 24 21 Melee . | . . . . Ram . | . . . . Kick 4 | . . 4 . Crush . | . . . . Escape Stasis . | . . . . Rewire . | . . . . Trap . | . . . . Miscellaneous . | . . . . Route ------- -11/Scrapyard -10/Materials -10/Mines (discovered 3 exits: [*Mat x2] / [*Sub]) -10/Subcaves (discovered 1 exit: [*Rec]) History --------- Turn | Location | Event 3 | -11/Scrapyard | Discovered new exit (range 16) 92 | -11/Scrapyard | Entered Materials 251 | -10/Materials | Discovered new exit (range 16) 303 | -10/Materials | Build established: Mutant 380 | -10/Materials | Entered Mines 456 | -10/Mines | Met a Derelict bent on vengeance 747 | -10/Mines | YI-UF0 nonchalantly dropped a Grenade Launcher on the ground 769 | -10/Mines | Discovered new exit (range 7) 794 | -10/Mines | Learned Materials interactive machine intel 1294 | -10/Mines | Discovered new exit (range 5) 1373 | -10/Mines | Discovered new exit (range 6) 1383 | -10/Mines | Entered Subcaves 1384 | -10/Subcaves | Approached by a straggling Scientist 1449 | -10/Subcaves | Disturbed a concealed Subdweller 1489 | -10/Subcaves | Core integrity fell below 50% 1711 | -10/Subcaves | A swath of the cavern ceiling suddenly collapsed 1838 | -10/Subcaves | Lost 3 parts (1n2w) 2012 | -10/Subcaves | Lost 3 parts (1n2w) 2033 | -10/Subcaves | Discovered new exit (range 11) 2336 | -10/Subcaves | Core integrity fell below 20% 2382 | -10/Subcaves | Lost 3 parts (1p2w) 2399 | -10/Subcaves | Ambushed by Subdweller buried in earth 2401 | -10/Subcaves | Destroyed by ED-XCS(R) with Subdweller Laser Last Messages --------------- 01978_ Grenade Launcher destroyed. 01981_ Aluminum Leg destroyed. 01983_ The unstable cave ceiling collapses. 01991_ Dropped Ion Engine. 02033_ EXIT=FOUND 02041_ Aluminum Leg destroyed. 02331_ Lgt. Ion Engine destroyed. 02349_ Mining Laser destroyed. 02350_ Acquired 12 matter. 02351_ Beam Cannon destroyed. 02362_ Searching scrap... 02362_ Found Sub. Laser. 02362_ Found Battle Rifle. 02362_ Found 64 Matter. 02363_ Acquired 64 matter. 02364_ Acquired Sub. Laser. 02366_ Acquired Battle Rifle. 02379_ Acquired 15 matter. 02399_ ED-XCS(R) comes tumbling out of the earth. Map ----- +----------------------------------------------------+ | ????????????????????????## " " " ?????????? | | ?????????????????????????# # ####"" ?????????? | | ?????????????????????????# ## #???????????????? | | ?????????????????????????## # "#??????????????? | | ????????????????????????## ## ##??????????????? | | ???????????????????????## # ##? #???????????????? | | ??????????????????????## #####??##???????????????? | | ?????????????????????## ##???????????????????????? | | ????????????????????## ##????????????????????????? | | ????????????????????# ##?????????????????????????? | | ????????????????????#"###????????????????????????? | | ????????????????????# ###??????????????????????? | | ????????????????????# # ####???????????????????? | | ????????????????????## # # #???????????????????? | | ?????????????????????## # # #???????????????????? | | ??????????????????????# ## ###???????????????????? | | ??????????????????????# ### ##???????????????????? | | ??????????????????????# ??# #???????????????????? | | ??????????????????????#??## ##???????????????????? | | ????????????????????????# # ##???????????????????? | | ?????????????????????????# ##??????????????????? | | ?????????????????????????# ## #??????????????????? | | ?????????????????????????# # ##??????????????????? | | ?????????????????????????# ##???????????????????? | | ????????????????#$ ####### # #???????????????????? | | ??????????????????# @####???????????????????? | | ??????????????????## ####R#??????????????????????? | | ????????????????????????###??????????????????????? | | ?????????????????????????????????????????????????? | | ?????????????????????????????????????????????????? | | ?????????????????????????????????????????????????? | | ?????????????????????????????????????????????????? | | ?????????????????????????????????????????????????? | | ?????????????????????????????????????????????????? | | ?????????????????????????????????????????????????? | | ?????????????????????????????????????????????????? | | ?????????????????????????????????????????????????? | | ?????????????????????????????????????????????????? | | ?????????????????????????????????????????????????? | | ?????????????????????????????????????????????????? | | ?????????????????????????????????????????????????? | | ?????????????????????????????????????????????????? | | ?????????????????????????????????????????????????? | | ?????????????????????????????????????????????????? | | ?????????????????????????????????????????????????? | | ?????????????????????????????????????????????????? | | | | | | | | | +----------------------------------------------------+ Best States ------------- Heat Dissipation 35 Energy Generation 10 Energy Capacity 250 Matter Stores 300 Matter Capacity 300 Sight Range 16 Terrain Scan Density 10 Evasion (%) 55 Item Schematics ----------------- None Robot Schematics ------------------ None Fabricated ------------ Nothing Repaired ---------- Nothing Studied --------- None Alien Tech Used ----------------- None Achievements -------------- None Challenges ------------ None Game ------ Seed ArcHeartDesublimator Manual? 0 Play Time 00:17:45 Cumulative 13.8 hours Start 2026.02.19 @ 02:41:13 End 2026.02.19 @ 02:56:18 Sessions 1 Manual Loads 0 Difficulty Rogue Special Mode None Game No. 19 Rogue 19 Adventurer 0 Explorer 0 Win Type - Total 0 Types 0/0/0/0/0/0/0/0/0/0 Lore% 21 Gallery% 21 Achievement% 16 Wizard Run 0 Options --------- Layout 1 ASCII 0 Keyboard 0 Movement Mouse Keybinds 0 Fullscreen 1 Font 24/Swanston Map View 50x35 Zoom Use 0% Tactical HUD 1 Map Filters NONE Filters NONE Steam 1 RUN: 76a8d4e7-8bb3-4e22-a7f3-142e044f6492